bitfinex-derivatives/quotes_BTCF0:USTF0_20250718
["timestamp","ask_amount","ask_price","bid_price","bid_amount"]
[1752812388624,1.1694043,119980.0,119950.0,0.3276954]
[1752812388625,0.2510997,119960.0,119950.0,0.3276954]
[1752812388816,1.46659438,119960.0,119950.0,0.3276954]
[1752812389021,1.34203806,119960.0,119950.0,0.3276954]
[1752812389925,1.34203806,119960.0,119950.0,0.3296954]
[1752812391419,1.34203806,119960.0,119950.0,0.3306954]
[1752812391827,1.34203806,119960.0,119950.0,0.4066754]
[1752812395525,0.98123806,119960.0,119950.0,0.4066754]
[1752812395726,1.34203806,119960.0,119950.0,0.4066754]
[1752812401024,1.34203806,119960.0,119950.0,0.3650234]
[1752812401220,1.59207071,119960.0,119950.0,0.12244]
[1752812401427,1.59207071,119960.0,119950.0,0.003]
[1752812402623,1.59207071,119960.0,119950.0,0.05325]
[1752812403031,1.59207071,119960.0,119950.0,0.003]
[1752812403527,0.2514636,119950.0,119940.0,0.06669]
[1752812403733,2.03235828,119950.0,119940.0,0.06669]
[1752812403926,2.15820368,119950.0,119940.0,0.06669]
[1752812404124,2.15820368,119950.0,119940.0,0.16417]
[1752812404433,2.15820368,119950.0,119940.0,0.3512875]
[1752812405034,2.16636611,119950.0,119940.0,0.3512875]
[1752812405333,2.16636611,119950.0,119940.0,0.18466]
[1752812406429,2.16636611,119950.0,119940.0,0.18666]
[1752812406634,2.16636611,119950.0,119940.0,0.3532875]
[1752812407936,1.91633346,119950.0,119940.0,0.3532875]
[1752812408124,2.16636611,119950.0,119940.0,0.3532875]
[1752812409236,2.16636611,119950.0,119940.0,0.3552875]
[1752812409836,2.47033346,119950.0,119940.0,0.67930015]
[1752812410035,2.47133346,119950.0,119940.0,0.67930015]
[1752812410636,1.88409346,119950.0,119940.0,0.67930015]
[1752812410836,2.47133346,119950.0,119940.0,0.67930015]
[1752812411635,2.47233346,119950.0,119940.0,0.67730015]
[1752812412942,2.11153346,119950.0,119940.0,0.67730015]
[1752812413131,2.47233346,119950.0,119940.0,0.61061015]
[1752812413334,2.45196346,119950.0,119940.0,0.61061015]
[1752812416441,2.48520346,119950.0,119940.0,0.3605775]
[1752812421445,2.47252346,119950.0,119940.0,0.3605775]
[1752812423347,2.47252346,119950.0,119940.0,0.61061015]
[1752812424643,2.45196346,119950.0,119940.0,0.61061015]
[1752812424844,2.28534986,119950.0,119940.0,0.61061015]
[1752812425144,2.45196336,119950.0,119940.0,0.61061015]
[1752812426346,1.29900336,119950.0,119940.0,0.61061015]
[1752812432048,1.29925188,119950.0,119940.0,0.61061015]
[1752812432841,0.54547838,119950.0,119940.0,0.61061015]
[1752812433043,0.54547838,119950.0,119940.0,1.01627388]
[1752812433044,0.60595055,119950.0,119940.0,1.01627388]
[1752812433244,0.60595055,119950.0,119940.0,1.18301788]
[1752812433445,0.60595055,119950.0,119940.0,1.13815415]
[1752812434651,0.5886,119950.0,119940.0,1.18301788]
[1752812436751,0.5886,119950.0,119940.0,1.01627388]
[1752812437351,0.5886,119950.0,119940.0,1.01635389]
[1752812437554,0.5886,119950.0,119940.0,0.97141015]
[1752812438348,0.5886,119950.0,119940.0,1.01634492]
[1752812439353,0.5886,119950.0,119940.0,1.02484925]
[1752812439554,0.5886,119950.0,119940.0,1.01634492]
[1752812443344,0.5886,119950.0,119940.0,1.0395532]
[1752812444053,0.5886,119950.0,119940.0,0.97971608]
[1752812444253,0.5886,119950.0,119940.0,1.0395532]
[1752812444454,0.5886,119950.0,119940.0,0.97971608]
[1752812447158,0.5886,119950.0,119940.0,0.97141015]
[1752812447459,0.002,119950.0,119940.0,0.97141015]
[1752812447659,0.58812,119950.0,119940.0,0.97141015]
[1752812448559,0.58612,119960.0,119950.0,0.0416504]
[1752812448753,0.01824628,119970.0,119960.0,0.2614796]
[1752812448957,0.01824628,119970.0,119960.0,1.22985789]
[1752812449160,1.42160156,119990.0,119980.0,0.2412918]
[1752812449358,2.05440315,119990.0,119980.0,0.63796099]
[1752812449661,2.53995304,119990.0,119980.0,0.63796099]
[1752812450460,2.52282046,119990.0,119980.0,0.63796099]
[1752812450962,2.54395431,119990.0,119980.0,0.6067076]
[1752812451162,1.59707431,119990.0,119980.0,0.6067076]
[1752812451462,2.17908859,119990.0,119980.0,0.6067076]
[1752812452262,2.17908859,119990.0,119980.0,0.3566218]
[1752812452562,2.17904859,119990.0,119980.0,0.6067076]
[1752812453363,1.59308859,119990.0,119980.0,0.6067076]
[1752812453559,2.17900859,119990.0,119980.0,0.6067076]
[1752812453862,1.54482543,119990.0,119980.0,0.6067076]
[1752812454063,2.08910303,119990.0,119980.0,0.6067076]
[1752812454963,2.47949303,119990.0,119980.0,0.6067076]
[1752812455162,2.11869303,119990.0,119980.0,0.6067076]
[1752812455363,2.47949303,119990.0,119980.0,0.6067076]
[1752812455564,2.47949303,119990.0,119980.0,0.3566218]
[1752812456065,2.11869303,119990.0,119980.0,0.3566218]
[1752812456565,2.11569303,119990.0,119980.0,0.3566218]
[1752812457863,2.11269303,119990.0,119980.0,0.6067076]
[1752812458665,2.47349303,119990.0,119980.0,0.6067076]
[1752812459164,2.07105263,119990.0,119980.0,0.6067076]
[1752812459357,1.90448703,119990.0,119980.0,0.6067076]
[1752812459559,1.89545703,119990.0,119980.0,0.6067076]
[1752812459756,1.87489703,119990.0,119980.0,0.6067076]
[1752812459956,1.28897703,119990.0,119980.0,0.6067076]
[1752812460263,1.87465703,119990.0,119980.0,0.6067076]
[1752812461162,2.06177503,119990.0,119980.0,0.6067076]
[1752812461369,2.06950503,119990.0,119980.0,0.6067076]
[1752812462568,2.06950503,119990.0,119980.0,0.3566218]
[1752812462767,2.06950503,119990.0,119980.0,0.6067076]
[1752812464665,2.06850503,119990.0,119980.0,0.6067076]
[1752812464867,1.89321703,119990.0,119980.0,0.6067076]
[1752812465066,1.87265703,119990.0,119980.0,0.6067076]
[1752812465775,1.87265703,119990.0,119980.0,0.9675076]
[1752812466273,2.03921513,119990.0,119980.0,0.9675076]
[1752812466873,1.87265703,119990.0,119980.0,0.9675076]
[1752812468367,2.03921513,119990.0,119980.0,0.6067076]
[1752812469174,1.87265703,119990.0,119980.0,0.6067076]
[1752812469370,1.87265703,119990.0,119980.0,0.9675076]
[1752812469770,1.87265703,119990.0,119980.0,1.0341776]
[1752812470976,1.87265703,119990.0,119980.0,1.06537476]
[1752812471478,1.28697703,119990.0,119980.0,1.06537476]
[1752812471675,0.001,119990.0,119980.0,1.39155763]
[1752812471980,0.5862,119990.0,119980.0,1.39155763]
[1752812474284,0.5862,119990.0,119980.0,1.06537476]
[1752812474484,0.5862,119990.0,119980.0,1.11025064]
[1752812475086,0.5862,119990.0,119980.0,1.07896659]
[1752812475292,0.8194682,119990.0,119980.0,1.07896659]
[1752812475481,0.66164,119990.0,119980.0,0.71816659]
[1752812475685,0.65291,119990.0,119980.0,1.07896659]
[1752812475883,0.63235,119990.0,119980.0,1.07896659]
[1752812476581,0.63235,119990.0,119980.0,1.04493659]
[1752812476888,0.8281982,119990.0,119980.0,0.63926071]
[1752812477285,0.8281982,119990.0,119980.0,0.68413659]
[1752812477484,0.8281982,119990.0,119980.0,0.71816659]
[1752812477678,0.63235,119990.0,119980.0,0.71816659]
[1752812477882,0.7989082,119990.0,119980.0,0.71816659]
[1752812478386,0.8194682,119990.0,119980.0,0.71816659]
[1752812478986,0.65291,119990.0,119980.0,0.71816659]
[1752812479389,0.8194681,119990.0,119980.0,0.71816659]
[1752812479579,0.65291,119990.0,119980.0,0.67329071]
[1752812481487,0.63235,119990.0,119980.0,1.07896659]
[1752812481687,0.63235,119990.0,119980.0,0.71816659]
[1752812481883,0.63235,119990.0,119980.0,1.07896659]
[1752812482392,0.04715,119990.0,119980.0,1.07896659]
[1752812482589,0.03318,119990.0,119980.0,1.07896659]
[1752812482794,0.61798,119990.0,119980.0,1.07896659]
[1752812483293,0.62961,119990.0,119980.0,1.07896659]
[1752812483487,0.64667584,119990.0,119980.0,1.03409071]
[1752812483791,0.62961,119990.0,119980.0,1.04259138]
[1752812484294,0.62961,119990.0,119980.0,1.03409071]
[1752812486393,0.64661017,119990.0,119980.0,1.03409071]
[1752812486889,0.84099817,119990.0,119980.0,1.03409071]
[1752812487895,0.84099817,119990.0,119980.0,0.67329071]
[1752812489492,0.67444017,119990.0,119980.0,0.67329071]
[1752812489695,0.84099827,119990.0,119980.0,0.67329071]
[1752812489891,0.67444017,119990.0,119980.0,0.67329071]
[1752812490692,0.66717017,119990.0,119980.0,0.71816659]
[1752812493399,0.65017,119990.0,119980.0,0.71816659]
[1752812494599,0.65017,119990.0,119980.0,1.07896659]
[1752812496298,0.62961,119990.0,119980.0,1.07896659]
[1752812496897,0.62961,119990.0,119980.0,1.11026699]
[1752812497292,0.62961,119990.0,119980.0,0.74946699]
[1752812497696,0.65017,119990.0,119980.0,0.74946699]
[1752812501008,0.65017,119990.0,119980.0,0.46816768]
[1752812501509,0.65017,119990.0,119980.0,0.74946699]
[1752812502009,0.816728,119990.0,119980.0,0.74946699]
[1752812502308,1.10529731,119990.0,119980.0,0.68509699]
[1752812503305,1.46609731,119990.0,119980.0,0.68509699]
[1752812503811,1.59056155,119990.0,119980.0,0.67474699]
[1752812504209,1.32601869,119990.0,119980.0,0.67474699]
[1752812504711,0.96521869,119990.0,119980.0,0.67474699]
[1752812505010,1.32601869,119990.0,119980.0,0.67474699]
[1752812505205,1.30926224,119990.0,119980.0,0.67474699]
[1752812505404,1.32602047,119990.0,119980.0,0.67474699]
[1752812506510,1.60731978,119990.0,119980.0,0.67474699]
[1752812506912,1.32602047,119990.0,119980.0,0.6435433]
[1752812507410,0.94846224,119990.0,119980.0,0.67353022]
[1752812507608,1.30926224,119990.0,119980.0,0.71633007]
[1752812507807,1.30926224,119990.0,119980.0,0.74942007]
[1752812508007,1.30926224,119990.0,119980.0,0.70454419]
[1752812508311,0.94846224,119990.0,119980.0,0.70454419]
[1752812508511,0.94846224,119990.0,119980.0,0.74942007]
[1752812508712,1.30926224,119990.0,119980.0,0.74942007]
[1752812508909,0.94846224,119990.0,119980.0,0.74942007]
[1752812509406,0.78190424,119990.0,119980.0,0.74942007]
[1752812509711,0.77463424,119990.0,119980.0,0.74942007]
[1752812509908,0.74152424,119990.0,119980.0,0.74942007]
[1752812510410,0.74152424,119990.0,119980.0,0.7194333]
[1752812510612,0.15764424,119990.0,119980.0,0.7194333]
[1752812510814,0.74148424,119990.0,119980.0,1.0802333]
[1752812511508,0.74148424,119990.0,119980.0,0.83013768]
[1752812511714,0.90804214,119990.0,119980.0,1.0802333]
[1752812512115,0.91678214,119990.0,119980.0,1.0802333]
[1752812512916,0.93734214,119990.0,119980.0,0.74941418]
[1752812513215,1.29814214,119990.0,119980.0,0.67455742]
[1752812513415,0.93734214,119990.0,119980.0,0.70453813]
[1752812513615,0.93734214,119990.0,119980.0,0.70453817]
[1752812514016,0.91678214,119990.0,119980.0,0.70453817]
[1752812514509,0.91678214,119990.0,119980.0,0.74941371]
[1752812515516,0.91678214,119990.0,119980.0,0.7194333]
[1752812515719,0.91678214,119990.0,119980.0,0.67455742]
[1752812517116,0.91678214,119990.0,119980.0,0.70453799]
[1752812517515,0.93734214,119990.0,119980.0,0.70453799]
[1752812518415,0.95420177,119990.0,119980.0,0.67455742]
[1752812518619,1.31500177,119990.0,119980.0,0.67455742]
[1752812518819,0.95420177,119990.0,119980.0,0.67455742]
[1752812519317,1.31500177,119990.0,119980.0,0.67455742]
[1752812519819,1.32046177,119990.0,119980.0,0.3485718]
[1752812520617,0.95966177,119990.0,119980.0,0.64032742]
[1752812520817,0.95420177,119990.0,119980.0,0.67366742]
[1752812521823,0.95420177,119990.0,119980.0,0.7185433]
[1752812522123,0.95966177,119990.0,119980.0,0.67366742]
[1752812522622,0.95966177,119990.0,119980.0,0.7185433]
[1752812523217,0.37582177,119990.0,119980.0,0.43510768]
[1752812523426,1.32010177,119990.0,119980.0,0.39344768]
[1752812523721,1.32010177,119990.0,119980.0,0.3485718]
[1752812524924,1.32010177,119990.0,119980.0,0.59866742]
[1752812525326,1.32010177,119990.0,119980.0,0.3485718]
[1752812525515,1.32010177,119990.0,119980.0,0.60891742]
[1752812525717,1.32010177,119990.0,119980.0,0.67366742]
[1752812533933,1.30324214,119990.0,119980.0,0.67366742]
[1752812536131,1.55333776,119990.0,119980.0,0.182]
[1752812536337,0.4269868,119980.0,119970.0,0.2326057]
[1752812536635,1.16278429,119980.0,119970.0,0.2326057]
[1752812537138,0.91268867,119980.0,119970.0,0.2326057]
[1752812538237,0.91268867,119980.0,119970.0,0.06602]
[1752812538737,0.91268867,119980.0,119970.0,0.2326057]
[1752812539538,0.91268867,119980.0,119970.0,0.2834957]
[1752812540034,0.91268867,119980.0,119970.0,0.06602]
[1752812540239,0.2513057,119970.0,119960.0,0.5095658]
[1752812540534,0.2513057,119970.0,119960.0,0.80317142]
[1752812540535,0.9000374,119970.0,119960.0,0.80317142]
[1752812540837,1.0257448,119970.0,119960.0,0.80317142]
[1752812541430,1.3865448,119970.0,119960.0,0.80317142]
[1752812542647,1.3865448,119970.0,119960.0,0.5530758]
[1752812542848,1.3865448,119970.0,119960.0,0.80317142]
[1752812543544,1.3695131,119970.0,119960.0,0.84812451]
[1752812544547,1.3694331,119970.0,119960.0,0.84812451]
[1752812546948,1.0086331,119970.0,119960.0,0.84812451]
[1752812547249,1.3694331,119970.0,119960.0,0.84812451]
[1752812547450,1.3693531,119970.0,119960.0,0.84812451]
[1752812549353,1.0085531,119970.0,119960.0,0.84812451]
[1752812550049,1.0085531,119970.0,119960.0,0.59802889]
[1752812550253,1.0085531,119970.0,119960.0,0.84812451]
[1752812554559,1.3693531,119970.0,119960.0,0.84812451]
[1752812554857,1.3693531,119970.0,119960.0,0.80317142]
[1752812555058,1.3693531,119970.0,119960.0,0.76152172]
[1752812555256,1.03648872,119970.0,119960.0,0.23059309]
[1752812555560,1.38620862,119970.0,119960.0,0.3522394]
[1752812557061,1.38720862,119970.0,119960.0,0.2855594]
[1752812562163,1.38720862,119970.0,119960.0,0.3179494]
[1752812562365,1.38720862,119970.0,119960.0,0.3279894]
[1752812564866,1.38720862,119970.0,119960.0,0.3614594]
[1752812567566,1.38720862,119970.0,119960.0,0.61155502]
[1752812569073,1.66865636,119970.0,119960.0,0.64290714]
[1752812570171,1.66865636,119970.0,119960.0,0.3614594]
[1752812570372,1.66865636,119970.0,119960.0,0.64290714]
[1752812573672,1.02640862,119970.0,119960.0,0.64290714]
[1752812573872,1.66865636,119970.0,119960.0,0.64290714]
[1752812574774,1.38720862,119970.0,119960.0,0.64290714]
[1752812574973,1.66865636,119970.0,119960.0,0.64290714]
[1752812575878,1.38720862,119970.0,119960.0,0.64290714]
[1752812576081,1.66865636,119970.0,119960.0,0.64290714]
[1752812580184,1.66865636,119970.0,119960.0,0.47630774]
[1752812580387,1.66865636,119970.0,119960.0,0.64290694]
[1752812581884,1.66865636,119970.0,119960.0,0.11896]
[1752812582090,0.3474792,119960.0,119950.0,0.11297]
[1752812582292,1.00678246,119960.0,119950.0,0.06669]
[1752812582485,1.13238243,119960.0,119950.0,0.06669]
[1752812584584,1.13238243,119960.0,119940.0,0.06613]
[1752812584788,0.347507,119940.0,119930.0,0.39878849]
[1752812584991,0.98975474,119940.0,119930.0,0.68023623]
[1752812585293,0.83403984,119940.0,119930.0,0.68023623]
[1752812585492,1.11548758,119940.0,119930.0,0.68023623]
[1752812585695,1.13231871,119940.0,119930.0,0.68023623]
[1752812585887,1.13231871,119940.0,119930.0,0.72087623]
[1752812586191,1.13231871,119940.0,119930.0,0.67592314]
[1752812586691,0.85087097,119940.0,119930.0,0.67592314]
[1752812586888,0.85187097,119940.0,119930.0,0.67592314]
[1752812587090,0.84065097,119940.0,119930.0,0.64477034]
[1752812588397,0.84894226,119940.0,119930.0,0.64477034]
[1752812588996,0.9170215,119940.0,119930.0,0.64477034]
[1752812589397,0.9282415,119940.0,119930.0,0.64477034]
[1752812591999,0.91141037,119940.0,119930.0,0.64477034]
[1752812592199,0.92813203,119940.0,119930.0,0.64477034]
[1752812595299,0.91141037,119940.0,119930.0,0.64477034]
[1752812599502,0.91141037,119940.0,119930.0,0.3944754]
[1752812599703,0.90019037,119940.0,119930.0,0.64477034]
[1752812602802,0.90019037,119940.0,119930.0,0.3944754]
[1752812603101,0.90019037,119940.0,119930.0,0.64477034]
[1752812605402,0.91690918,119940.0,119930.0,0.64477034]
[1752812605704,0.91690918,119940.0,119930.0,0.3944754]
[1752812605906,0.90019037,119940.0,119930.0,0.64477034]
[1752812606897,0.90019037,119940.0,119930.0,0.6760447]
[1752812607104,0.91691245,119940.0,119930.0,0.6760447]
[1752812609303,0.92836245,119940.0,119930.0,0.6760447]
[1752812610510,1.51040245,119940.0,119930.0,0.3944754]
[1752812610808,1.51040245,119940.0,119930.0,0.6760447]
[1752812611009,1.49895245,119940.0,119930.0,0.6760447]
[1752812614217,0.74725245,119940.0,119930.0,0.6760447]
[1752812614413,0.67605261,119940.0,119930.0,1.36336709]
[1752812614619,0.65103924,119940.0,119930.0,1.37835145]
[1752812614812,0.65103924,119940.0,119930.0,1.01755145]
[1752812615017,0.65103924,119940.0,119930.0,1.37835145]
[1752812615321,0.81766584,119940.0,119930.0,1.37835145]
[1752812615521,0.81766584,119940.0,119930.0,1.318414]
[1752812615721,0.82618494,119940.0,119930.0,1.318414]
[1752812616516,0.82618494,119940.0,119930.0,1.0368447]
[1752812617213,0.82618494,119940.0,119930.0,1.36339137]
[1752812619617,0.89038494,119940.0,119930.0,1.08182207]
[1752812619826,0.94004494,119940.0,119930.0,1.08182207]
[1752812620527,0.94981494,119940.0,119930.0,1.08182207]
[1752812623528,0.99972494,119940.0,119930.0,1.08182207]
[1752812623928,0.94981494,119940.0,119930.0,1.08182207]
[1752812626328,0.90015494,119940.0,119930.0,1.36339137]
[1752812626525,0.65103924,119940.0,119930.0,1.36339137]
[1752812626726,0.81766584,119940.0,119930.0,1.36339137]
[1752812627126,0.06907924,119940.0,119930.0,1.36339137]
[1752812627322,0.65083924,119940.0,119930.0,1.36339137]
[1752812627726,0.81746584,119940.0,119930.0,1.36339137]
[1752812628528,0.82573673,119940.0,119930.0,1.36339137]
[1752812628830,0.82473673,119940.0,119930.0,1.36339137]
[1752812629029,0.81646584,119940.0,119930.0,1.36339137]
[1752812629228,0.64983924,119940.0,119930.0,1.36339137]
[1752812630026,0.1852667,119950.0,119940.0,0.3551566]
[1752812630226,0.78394613,119950.0,119940.0,0.9182952]
[1752812630528,1.00699825,119950.0,119940.0,0.9182952]
[1752812631226,0.84037495,119950.0,119940.0,0.9182952]
[1752812631425,0.84037495,119950.0,119940.0,1.2790952]
[1752812631625,1.00698765,119950.0,119940.0,1.2790952]
[1752812631825,1.00798765,119950.0,119940.0,1.2790952]
[1752812633429,1.01636432,119950.0,119940.0,1.2790952]
[1752812634029,0.99940489,119950.0,119940.0,1.32407257]
[1752812635431,1.02978489,119950.0,119940.0,1.32407257]
[1752812635725,1.02978489,119950.0,119940.0,1.2790952]
[1752812635923,1.07684489,119950.0,119940.0,1.2790952]
[1752812636327,1.07684489,119950.0,119940.0,1.32407257]
[1752812640325,1.07684489,119950.0,119940.0,0.96327257]
[1752812641027,1.12544489,119950.0,119940.0,0.96327257]
[1752812641232,1.12544489,119950.0,119940.0,0.40013397]
[1752812641425,1.14241169,119950.0,119940.0,0.96327257]
[1752812645127,1.12544489,119950.0,119940.0,0.96327257]
[1752812649036,0.55316489,119950.0,119940.0,0.96327257]
[1752812649236,1.13452489,119950.0,119940.0,0.96327257]
[1752812653233,1.15131215,119950.0,119940.0,0.96327257]
[1752812654338,1.15131215,119950.0,119940.0,1.32407257]
[1752812655837,1.10271215,119950.0,119940.0,1.32407257]
[1752812656538,1.10255215,119950.0,119940.0,1.32407257]
[1752812657442,1.10255215,119950.0,119940.0,0.96327257]
[1752812659139,1.14828215,119950.0,119940.0,0.96327257]
[1752812660739,0.56708215,119950.0,119940.0,0.96327257]
[1752812660945,0.56708215,119950.0,119940.0,1.32407257]
[1752812660946,1.10243215,119950.0,119940.0,1.32407257]
[1752812668143,1.08564489,119950.0,119940.0,1.32407257]
[1752812669745,1.10239534,119950.0,119940.0,1.32407257]
[1752812670746,1.14812534,119950.0,119940.0,1.32407257]
[1752812671845,1.15818534,119950.0,119940.0,1.32407257]
[1752812672850,1.15818534,119950.0,119940.0,0.96327257]
[1752812674452,1.43975464,119950.0,119940.0,0.6367259]
[1752812675852,1.15818534,119950.0,119940.0,0.6367259]
[1752812677554,1.15818534,119950.0,119940.0,0.9182952]
[1752812678056,1.14812534,119950.0,119940.0,0.9182952]
[1752812678453,1.14812534,119950.0,119940.0,0.96327257]
[1752812678953,1.14812534,119950.0,119940.0,0.9182952]
[1752812680354,0.56704534,119950.0,119940.0,0.9182952]
[1752812680555,1.14772534,119950.0,119940.0,0.96327257]
[1752812682756,1.13097489,119950.0,119940.0,0.96327257]
[1752812683056,1.13097489,119950.0,119940.0,0.9182952]
[1752812684558,1.14796318,119950.0,119940.0,0.96330832]
[1752812685159,1.12931978,119950.0,119940.0,0.96330832]
[1752812685858,1.12931978,119950.0,119940.0,0.97224832]
[1752812687460,1.13937978,119950.0,119940.0,0.97224832]
[1752812691362,0.55869978,119950.0,119940.0,0.97224832]
[1752812691557,1.13909978,119950.0,119940.0,0.97224832]
[1752812694861,1.12903978,119950.0,119940.0,0.97224832]
[1752812700653,1.12904085,119950.0,119940.0,0.97224832]
[1752812705865,1.12904085,119950.0,119940.0,0.96330832]
[1752812707063,0.50291085,119950.0,119940.0,0.96330832]
[1752812707262,0.96577085,119950.0,119940.0,0.96330832]
[1752812707463,0.96577085,119950.0,119940.0,1.32410832]
[1752812708162,0.38573085,119950.0,119940.0,1.32410832]
[1752812708362,0.96573085,119950.0,119940.0,1.32410832]
[1752812708566,0.96573085,119950.0,119940.0,1.33304832]
[1752812709871,0.99522085,119950.0,119940.0,1.33304832]
[1752812710067,0.99522085,119950.0,119940.0,0.76990972]
[1752812710274,0.99522085,119950.0,119940.0,1.33304832]
[1752812710576,1.02503085,119950.0,119940.0,1.33304832]
[1752812713368,1.07138085,119950.0,119940.0,1.33304832]
[1752812713973,0.49138085,119950.0,119940.0,1.33304832]
[1752812714178,1.07122085,119950.0,119940.0,1.33304832]
[1752812714679,0.49138085,119950.0,119940.0,1.33304832]
[1752812715178,1.07114065,119950.0,119940.0,1.33304832]
[1752812715680,1.08019065,119950.0,119940.0,1.33304832]
[1752812716583,0.82836815,119950.0,119940.0,1.33304832]
[1752812716782,0.99498065,119950.0,119940.0,1.33304832]
[1752812717383,0.82836815,119950.0,119940.0,0.76990972]
[1752812717678,0.82836815,119950.0,119940.0,1.33304832]
[1752812718584,0.12908,119970.0,119960.0,0.2292086]
[1752812718780,0.80397182,119970.0,119960.0,0.9085472]
[1752812718979,0.95988035,119970.0,119960.0,0.6269779]
[1752812719174,1.00466035,119970.0,119960.0,0.6269779]
[1752812719383,1.07086304,119970.0,119960.0,0.6269779]
[1752812719782,1.07486304,119970.0,119960.0,0.6269779]
[1752812720075,1.11839304,119970.0,119960.0,0.6269779]
[1752812720280,1.12771165,119970.0,119960.0,0.6269779]
[1752812721481,1.12371165,119970.0,119960.0,0.6269779]
[1752812721886,1.12371165,119970.0,119960.0,0.6269778]
[1752812722088,1.13242165,119970.0,119960.0,0.6269778]
[1752812722985,1.41399095,119970.0,119960.0,0.6269778]
[1752812723487,1.13242165,119970.0,119960.0,0.6269778]
[1752812723885,1.41399095,119970.0,119960.0,0.6269778]
[1752812726184,1.13242165,119970.0,119960.0,0.6269778]
[1752812726385,1.41399095,119970.0,119960.0,0.6269778]
[1752812726688,1.12347165,119970.0,119960.0,0.6359178]
[1752812729892,0.54403165,119970.0,119960.0,0.6359178]
[1752812730093,1.12335165,119970.0,119960.0,0.6359178]
[1752812732995,1.12335165,119970.0,119960.0,0.3543485]
[1752812733296,1.12335165,119970.0,119960.0,0.6359178]
[1752812733497,0.54403165,119970.0,119960.0,0.6359178]
[1752812733695,1.12327165,119970.0,119960.0,0.6359178]
[1752812733887,0.28913695,119970.0,119960.0,0.6359178]
[1752812734089,1.00364165,119970.0,119960.0,0.6359178]
[1752812734594,1.04842165,119970.0,119960.0,0.6359178]
[1752812735195,1.03148453,119970.0,119960.0,0.6359178]
[1752812736304,1.03148453,119970.0,119960.0,0.66589633]
[1752812736800,1.07501453,119970.0,119960.0,0.66589633]
[1752812737300,0.39838453,119970.0,119960.0,0.66589633]
[1752812737502,0.97750453,119970.0,119960.0,0.66589633]
[1752812738101,1.00882453,119970.0,119960.0,0.38432703]
[1752812738301,1.00882453,119970.0,119960.0,0.66589633]
[1752812738490,0.97750453,119970.0,119960.0,0.66589633]
[1752812738804,0.97750453,119970.0,119960.0,0.94746563]
[1752812739100,0.97750453,119970.0,119960.0,0.66589633]
[1752812739501,0.23179983,119970.0,119960.0,0.66589633]
[1752812739701,0.97746453,119970.0,119960.0,0.66589633]
[1752812739896,0.39838453,119970.0,119960.0,0.66589633]
[1752812740200,0.97746453,119970.0,119960.0,0.94746563]
[1752812740401,0.97746453,119970.0,119960.0,0.66589633]
[1752812740696,1.00878453,119970.0,119960.0,0.38432703]
[1752812740902,1.00878453,119970.0,119960.0,0.66589633]
[1752812742198,1.05356453,119970.0,119960.0,0.66589633]
[1752812744305,0.48356453,119970.0,119960.0,0.66589633]
[1752812744498,1.06256453,119970.0,119960.0,0.66589633]
[1752812747101,0.89597983,119970.0,119960.0,0.71090945]
[1752812747304,0.65197,119970.0,119960.0,1.35327875]
[1752812747502,0.57988,119970.0,119960.0,1.32330022]
[1752812747800,0.05011703,119990.0,119980.0,0.1753709]
[1752812748004,0.05011703,119990.0,119980.0,0.65692192]
[1752812748005,0.62899703,119990.0,119980.0,0.65692192]
[1752812748205,0.62899703,119990.0,119980.0,1.01772192]
[1752812748507,0.59730703,119990.0,119980.0,1.03276332]
[1752812748899,0.02342703,119990.0,119980.0,0.9877502]
[1752812749099,0.43852,120010.0,120000.0,0.10836]
[1752812749305,0.61022,120010.0,120000.0,0.9066317]
[1752812749506,0.61022,120010.0,120000.0,0.93656771]
[1752812749905,0.63948,120010.0,120000.0,0.93656771]
[1752812750106,0.06064,120010.0,120000.0,0.9066317]
[1752812750306,0.63944,120010.0,120000.0,0.93656771]
[1752812750607,0.64144,120010.0,120000.0,0.93656771]
[1752812750810,0.8543092,120010.0,120000.0,0.93656771]
[1752812751004,0.8543092,120010.0,120000.0,0.62337815]
[1752812751506,0.68778,120010.0,120000.0,0.62337815]
[1752812751708,0.8542692,120010.0,120000.0,0.62337815]
[1752812751908,0.91727941,120010.0,120000.0,0.62337815]
[1752812753108,0.91727941,120010.0,120000.0,0.59344214]
[1752812753706,0.91827941,120010.0,120000.0,0.59344214]
[1752812754306,0.92645941,120010.0,120000.0,0.59344214]
[1752812754812,0.92645941,120010.0,120000.0,0.2300331]
[1752812755600,0.92645941,120010.0,120000.0,0.59344214]
[1752812757414,0.91827941,120010.0,120000.0,0.59344214]
[1752812758011,0.91827941,120010.0,120000.0,0.60238214]
[1752812758908,0.92645941,120010.0,120000.0,0.60238214]
[1752812763314,0.92645941,120010.0,120000.0,0.3524331]
[1752812763623,0.92645941,120010.0,120000.0,0.60238214]
[1752812765314,0.92645941,120010.0,120000.0,0.3524331]
[1752812765516,0.92645941,120010.0,120000.0,0.60238214]
[1752812766314,0.92645941,120010.0,120000.0,0.3524331]
[1752812766515,0.92645941,120010.0,120000.0,0.60238214]
[1752812767513,0.33951941,120010.0,120000.0,0.60238214]
[1752812767717,0.91779941,120010.0,120000.0,0.60238214]
[1752812770718,0.91771941,120010.0,120000.0,0.60238214]
[1752812773422,0.91767941,120010.0,120000.0,0.60238214]
[1752812773622,0.17803941,120010.0,120000.0,0.60238214]
[1752812773822,0.58963021,120010.0,120000.0,0.85233118]
[1752812774022,0.58112,120010.0,120000.0,0.85233118]
[1752812774822,0.7476492,120010.0,120000.0,0.60238214]
[1752812775122,0.7476492,120010.0,120000.0,0.63231815]
[1752812775323,0.7790292,120010.0,120000.0,0.63231815]
[1752812775525,0.8640692,120010.0,120000.0,0.63231815]
[1752812777224,0.8640692,120010.0,120000.0,0.6772226]
[1752812778127,0.8640692,120010.0,120000.0,0.64728659]
[1752812779734,0.8640692,120010.0,120000.0,1.00808659]
[1752812787036,0.8640692,120010.0,120000.0,1.32050873]
[1752812788636,0.64176,120010.0,120000.0,1.32050873]
[1752812789139,0.58112,120010.0,120000.0,1.32050873]
[1752812789640,0.58084,120010.0,120000.0,1.27560428]
[1752812789828,0.58084,120010.0,120000.0,1.63640428]
[1752812790739,0.58084,120010.0,120000.0,1.68136989]
[1752812790936,0.003,120010.0,120000.0,1.74041024]
[1752812791143,1.4056972,120040.0,120030.0,0.3232415]
[1752812791337,1.9834972,120040.0,120030.0,0.59135207]
[1752812791543,2.10768329,120040.0,120030.0,0.62131586]
[1752812792041,2.10764329,120040.0,120030.0,0.62131586]
[1752812792638,2.11513329,120040.0,120030.0,0.62131586]
[1752812792842,2.12213329,120040.0,120030.0,0.62131586]
[1752812793242,2.13041571,120040.0,120030.0,0.62131586]
[1752812793632,2.20224283,120040.0,120030.0,0.62131586]
[1752812794243,2.20224283,120040.0,120030.0,0.59135207]
[1752812795244,2.20224283,120040.0,120030.0,0.60028207]
[1752812797248,2.56304283,120040.0,120030.0,0.60028207]
[1752812798047,2.20224283,120040.0,120030.0,0.60028207]
[1752812798344,2.20224283,120040.0,120030.0,0.3504215]
[1752812798539,2.20224283,120040.0,120030.0,0.60028207]
[1752812799041,2.19475283,120040.0,120030.0,0.60028207]